[Event "Early Titled Tuesday Blitz | February 8 2022"]
[White "Murthy, Pappu"]
[Black "Lakshmi C"]
[WhiteFideId "2013401"]
[BlackFideId "25035347"]
[WhiteElo "1968"]
[BlackElo "1775"]
[Result "0-1"]
[Round "06"]
[TimeControl "180+1"]
[Date "2022.02.08"]
[WhiteClock "0:00:20"]
[BlackClock "0:00:08"]

1. c4 {[%clk 0:03:00]}  Nf6 {[%clk 0:02:55]} 2. Nc3 {[%clk 0:03:01]}  g6 {[%clk 0:02:45]} 3. e4 {[%clk 0:03:00]}  d6 {[%clk 0:02:43]} 4. d4 {[%clk 0:03:01]}  Bg7 {[%clk 0:02:40]} 5. Nge2 {[%clk 0:03:01]}  Nc6 {[%clk 0:02:39]} 6. Ng3 {[%clk 0:02:57]}  O-O {[%clk 0:02:37]} 7. Be2 {[%clk 0:02:57]}  e5 {[%clk 0:02:37]} 8. d5 {[%clk 0:02:57]}  Ne7 {[%clk 0:02:36]} 9. h4 {[%clk 0:02:54]}  h5 {[%clk 0:01:44]} 10. Bg5 {[%clk 0:02:51]}  Nh7 {[%clk 0:01:43]} 11. Bxh5 {[%clk 0:02:25]}  gxh5 {[%clk 0:01:37]} 12. Nxh5 {[%clk 0:02:25]}  f6 {[%clk 0:00:35]} 13. Nxg7 {[%clk 0:02:12]}  Kxg7 {[%clk 0:00:34]} 14. Be3 {[%clk 0:02:08]}  f5 {[%clk 0:00:23]} 15. g3 {[%clk 0:02:08]}  a6 {[%clk 0:00:18]} 16. Qh5 {[%clk 0:01:44]}  Qe8 {[%clk 0:00:16]} 17. Bh6+ {[%clk 0:01:41]}  Kh8 {[%clk 0:00:16]} 18. Qe2 {[%clk 0:01:11]}  Rg8 {[%clk 0:00:15]} 19. O-O-O {[%clk 0:01:07]}  Qg6 {[%clk 0:00:11]} 20. Bg5 {[%clk 0:01:02]}  Re8 {[%clk 0:00:11]} 21. Kb1 {[%clk 0:00:55]}  Bd7 {[%clk 0:00:07]} 22. Ka1 {[%clk 0:00:55]}  b5 {[%clk 0:00:07]} 23. c5 {[%clk 0:00:52]}  dxc5 {[%clk 0:00:04]} 24. Bxe7 {[%clk 0:00:42]}  Rxe7 {[%clk 0:00:04]} 25. d6 {[%clk 0:00:39]}  cxd6 {[%clk 0:00:04]} 26. h5 {[%clk 0:00:40]}  Qf6 {[%clk 0:00:04]} 27. Nd5 {[%clk 0:00:39]}  Qf7 {[%clk 0:00:04]} 28. Nxe7 {[%clk 0:00:38]}  Qxe7 {[%clk 0:00:05]} 29. h6 {[%clk 0:00:39]}  Bc6 {[%clk 0:00:04]} 30. exf5 {[%clk 0:00:38]}  Bxh1 {[%clk 0:00:03]} 31. Rxh1 {[%clk 0:00:33]}  Qf6 {[%clk 0:00:04]} 32. g4 {[%clk 0:00:33]}  Qe7 {[%clk 0:00:05]} 33. Qe4 {[%clk 0:00:32]}  Qf6 {[%clk 0:00:06]} 34. Qxa8+ {[%clk 0:00:31]}  Qf8 {[%clk 0:00:05]} 35. Qxa6 {[%clk 0:00:30]}  Ng5 {[%clk 0:00:05]} 36. Qb7 {[%clk 0:00:29]}  e4 {[%clk 0:00:04]} 37. Qxb5 {[%clk 0:00:26]}  Qe7 {[%clk 0:00:04]} 38. Qb8+ {[%clk 0:00:25]}  Kh7 {[%clk 0:00:05]} 39. Rd1 {[%clk 0:00:21]}  Nf7 {[%clk 0:00:04]} 40. Qb3 {[%clk 0:00:19]}  Qf6 {[%clk 0:00:04]} 41. Qh3 {[%clk 0:00:20]}  Qe5 {[%clk 0:00:03]} 42. Qh5 {[%clk 0:00:20]}  Qf6 {[%clk 0:00:04]} 43. g5 {[%clk 0:00:20]}  Nxg5 {[%clk 0:00:04]} 44. Rh1 {[%clk 0:00:16]}  d5 {[%clk 0:00:03]} 45. Rg1 {[%clk 0:00:16]}  Nf7 {[%clk 0:00:03]} 46. Rg7+ {[%clk 0:00:16]}  Kh8 {[%clk 0:00:04]} 47. Rg6 {[%clk 0:00:14]}  Qd4 {[%clk 0:00:02]} 48. Qh4 {[%clk 0:00:14]}  Qc4 {[%clk 0:00:02]} 49. Rg8+ {[%clk 0:00:11]}  Kxg8 {[%clk 0:00:02]} 50. Qg4+ {[%clk 0:00:12]}  Kf8 {[%clk 0:00:03]} 51. Qg7+ {[%clk 0:00:12]}  Ke7 {[%clk 0:00:03]} 52. f6+ {[%clk 0:00:11]}  Kd6 {[%clk 0:00:02]} 53. Qg3+ {[%clk 0:00:11]}  Kc6 {[%clk 0:00:02]} 54. Qc3 {[%clk 0:00:12]}  Qxc3 {[%clk 0:00:02]} 55. bxc3 {[%clk 0:00:12]}  d4 {[%clk 0:00:02]} 56. h7 {[%clk 0:00:12]}  d3 {[%clk 0:00:02]} 57. Kb2 {[%clk 0:00:12]}  c4 {[%clk 0:00:02]} 58. Kc1 {[%clk 0:00:13]}  Kd5 {[%clk 0:00:03]} 59. Kd2 {[%clk 0:00:13]}  Ke6 {[%clk 0:00:03]} 60. Ke3 {[%clk 0:00:14]}  Kxf6 {[%clk 0:00:04]} 61. a4 {[%clk 0:00:14]}  Ke6 {[%clk 0:00:03]} 62. a5 {[%clk 0:00:14]}  Kd5 {[%clk 0:00:04]} 63. a6 {[%clk 0:00:15]}  Kc6 {[%clk 0:00:04]} 64. a7 {[%clk 0:00:16]}  Kb7 {[%clk 0:00:04]} 65. a8=Q+ {[%clk 0:00:17]}  Kxa8 {[%clk 0:00:05]} 66. h8=Q+ {[%clk 0:00:16]}  Nxh8 {[%clk 0:00:04]} 67. Kxe4 {[%clk 0:00:17]}  d2 {[%clk 0:00:04]} 68. Kd4 {[%clk 0:00:18]}  d1=Q+ {[%clk 0:00:03]} 69. Kxc4 {[%clk 0:00:19]}  Qa4+ {[%clk 0:00:03]} 70. Kd3 {[%clk 0:00:19]}  Qd7+ {[%clk 0:00:03]} 71. Kc2 {[%clk 0:00:19]}  Kb7 {[%clk 0:00:03]} 72. f3 {[%clk 0:00:19]}  Kc6 {[%clk 0:00:04]} 73. f4 {[%clk 0:00:20]}  Kc5 {[%clk 0:00:04]} 74. f5 {[%clk 0:00:21]}  Kc4 {[%clk 0:00:05]} 75. f6 {[%clk 0:00:22]}  Qf7 {[%clk 0:00:05]} 76. Kd2 {[%clk 0:00:20]}  Qxf6 {[%clk 0:00:06]} 77. Ke3 {[%clk 0:00:20]}  Qe5+ {[%clk 0:00:07]} 78. Kd2 {[%clk 0:00:20]}  Qxc3+ {[%clk 0:00:06]} 79. Kd1 {[%clk 0:00:20]}  Qb2 {[%clk 0:00:06]} 80. Ke1 {[%clk 0:00:20]}  Kd3 {[%clk 0:00:07]} 81. Kf1 {[%clk 0:00:21]}  Qd2 {[%clk 0:00:07]} 82. Kg1 {[%clk 0:00:20]}  Ke3 {[%clk 0:00:07]} 83. Kh1 {[%clk 0:00:20]}  Kf3 {[%clk 0:00:08]} 84. Kg1 {[%clk 0:00:20]}  Qg2# {[%clk 0:00:08]} 0-1


[Site "https://www.chess.com"]

[Event "Early Titled Tuesday Blitz | February 8 2022"]
[White "Narayanan.S.L"]
[Black "Beerdsen, Thomas"]
[WhiteFideId "5058422"]
[BlackFideId "1030108"]
[WhiteElo "2494"]
[BlackElo "2585"]
[Result "0-1"]
[Round "06"]
[TimeControl "180+1"]
[Date "2022.02.08"]
[WhiteClock "0:01:15"]
[BlackClock "0:02:14"]

1. Nf3 {[%clk 0:03:00]}  h6 {[%clk 0:03:00]} 2. h4 {[%clk 0:02:59]}  Nf6 {[%clk 0:02:57]} 3. h5 {[%clk 0:02:59]}  c5 {[%clk 0:02:56]} 4. c4 {[%clk 0:02:59]}  Nc6 {[%clk 0:02:56]} 5. Nc3 {[%clk 0:02:58]}  d6 {[%clk 0:02:56]} 6. d4 {[%clk 0:02:56]}  cxd4 {[%clk 0:02:53]} 7. Nxd4 {[%clk 0:02:56]}  Bg4 {[%clk 0:02:51]} 8. g3 {[%clk 0:02:54]}  Bxh5 {[%clk 0:02:47]} 9. Bg2 {[%clk 0:02:55]}  Rc8 {[%clk 0:02:47]} 10. b3 {[%clk 0:02:41]}  Bg6 {[%clk 0:02:44]} 11. Bb2 {[%clk 0:02:42]}  e6 {[%clk 0:02:41]} 12. Qd2 {[%clk 0:02:42]}  Be7 {[%clk 0:02:40]} 13. Rd1 {[%clk 0:02:41]}  a6 {[%clk 0:02:39]} 14. e3 {[%clk 0:02:27]}  O-O {[%clk 0:02:32]} 15. Nce2 {[%clk 0:02:26]}  Nxd4 {[%clk 0:02:31]} 16. Bxd4 {[%clk 0:02:23]}  e5 {[%clk 0:02:28]} 17. Bb2 {[%clk 0:02:20]}  b5 {[%clk 0:02:28]} 18. Rc1 {[%clk 0:01:54]}  bxc4 {[%clk 0:02:28]} 19. bxc4 {[%clk 0:01:54]}  Ne4 {[%clk 0:02:29]} 20. Qb4 {[%clk 0:01:16]}  Rb8 {[%clk 0:02:23]} 21. Qa3 {[%clk 0:01:15]}  d5 {[%clk 0:02:23]} 22. c5 {[%clk 0:01:15]}  Nxc5 {[%clk 0:02:14]} 0-1


[Site "https://www.chess.com"]

[Event "Early Titled Tuesday Blitz | February 8 2022"]
[White "Navara, David"]
[Black "Jaracz, Pawel"]
[WhiteFideId "309095"]
[BlackFideId "1102222"]
[WhiteElo "2686"]
[BlackElo "2429"]
[Result "0-1"]
[Round "06"]
[TimeControl "180+1"]
[Date "2022.02.08"]
[WhiteClock "0:00:01"]
[BlackClock "0:00:08"]

1. d4 {[%clk 0:03:00]}  Nf6 {[%clk 0:02:57]} 2. c4 {[%clk 0:03:00]}  e6 {[%clk 0:02:57]} 3. Nc3 {[%clk 0:03:01]}  Bb4 {[%clk 0:02:57]} 4. e3 {[%clk 0:03:01]}  O-O {[%clk 0:02:56]} 5. Bd3 {[%clk 0:03:01]}  c5 {[%clk 0:02:55]} 6. Ne2 {[%clk 0:02:56]}  d5 {[%clk 0:02:54]} 7. a3 {[%clk 0:02:43]}  Bxc3+ {[%clk 0:02:51]} 8. Nxc3 {[%clk 0:02:44]}  cxd4 {[%clk 0:02:51]} 9. exd4 {[%clk 0:02:45]}  dxc4 {[%clk 0:02:51]} 10. Bxc4 {[%clk 0:02:46]}  Nc6 {[%clk 0:02:52]} 11. Be3 {[%clk 0:02:44]}  Ne7 {[%clk 0:02:48]} 12. O-O {[%clk 0:02:22]}  Nf5 {[%clk 0:02:44]} 13. Qf3 {[%clk 0:02:18]}  Bd7 {[%clk 0:02:28]} 14. Bg5 {[%clk 0:01:43]}  Rc8 {[%clk 0:02:24]} 15. Bd3 {[%clk 0:01:39]}  Bc6 {[%clk 0:02:15]} 16. Qh3 {[%clk 0:01:30]}  h6 {[%clk 0:02:15]} 17. Bxf6 {[%clk 0:01:27]}  Qxf6 {[%clk 0:02:15]} 18. d5 {[%clk 0:01:25]}  Bd7 {[%clk 0:02:15]} 19. Bxf5 {[%clk 0:01:19]}  exf5 {[%clk 0:02:08]} 20. Rad1 {[%clk 0:01:06]}  Rfd8 {[%clk 0:02:04]} 21. Qe3 {[%clk 0:01:03]}  b6 {[%clk 0:02:03]} 22. Qd4 {[%clk 0:01:01]}  Qd6 {[%clk 0:01:55]} 23. Rfe1 {[%clk 0:00:57]}  Re8 {[%clk 0:01:54]} 24. g3 {[%clk 0:00:52]}  a5 {[%clk 0:01:37]} 25. Kg2 {[%clk 0:00:39]}  b5 {[%clk 0:01:36]} 26. Rxe8+ {[%clk 0:00:34]}  Rxe8 {[%clk 0:01:32]} 27. b4 {[%clk 0:00:33]}  Rc8 {[%clk 0:01:22]} 28. bxa5 {[%clk 0:00:16]}  Rc4 {[%clk 0:01:22]} 29. Qb6 {[%clk 0:00:15]}  Qe5 {[%clk 0:01:12]} 30. Qd8+ {[%clk 0:00:13]}  Be8 {[%clk 0:01:13]} 31. Nxb5 {[%clk 0:00:13]}  Qe4+ {[%clk 0:01:11]} 32. Kg1 {[%clk 0:00:13]}  Qe2 {[%clk 0:01:07]} 33. Rf1 {[%clk 0:00:11]}  Kh7 {[%clk 0:00:38]} 34. Nd6 {[%clk 0:00:11]}  Re4 {[%clk 0:00:21]} 35. Nxe4 {[%clk 0:00:11]}  Qxe4 {[%clk 0:00:21]} 36. a6 {[%clk 0:00:10]}  Bb5 {[%clk 0:00:17]} 37. Rc1 {[%clk 0:00:07]}  Bc4 {[%clk 0:00:13]} 38. Rxc4 {[%clk 0:00:04]}  Qxc4 {[%clk 0:00:13]} 39. a7 {[%clk 0:00:03]}  Qe4 {[%clk 0:00:10]} 40. a8=Q {[%clk 0:00:02]}  Qe1+ {[%clk 0:00:10]} 41. Kg2 {[%clk 0:00:03]}  Qe4+ {[%clk 0:00:10]} 42. Kf1 {[%clk 0:00:04]}  Qd3+ {[%clk 0:00:10]} 43. Ke1 {[%clk 0:00:04]}  Qc3+ {[%clk 0:00:10]} 44. Ke2 {[%clk 0:00:03]}  Qc2+ {[%clk 0:00:11]} 45. Ke3 {[%clk 0:00:03]}  Qc3+ {[%clk 0:00:08]} 46. Kf4 {[%clk 0:00:02]}  Qd4+ {[%clk 0:00:08]} 47. Kxf5 {[%clk 0:00:01]}  g6# {[%clk 0:00:08]} 0-1


[Site "https://www.chess.com"]

[Event "Early Titled Tuesday Blitz | February 8 2022"]
[White "Nguyen, Ngoc Truong Son"]
[Black "Khumalo, Keith"]
[WhiteFideId "12401110"]
[BlackFideId "14319470"]
[WhiteElo "2828"]
[BlackElo "2598"]
[Result "1-0"]
[Round "06"]
[TimeControl "180+1"]
[Date "2022.02.08"]
[WhiteClock "0:01:00"]
[BlackClock "0:01:52"]

1. d4 {[%clk 0:03:00]}  d5 {[%clk 0:03:00]} 2. Nf3 {[%clk 0:03:01]}  Nf6 {[%clk 0:03:00]} 3. c4 {[%clk 0:03:00]}  dxc4 {[%clk 0:02:59]} 4. e3 {[%clk 0:03:00]}  e6 {[%clk 0:03:00]} 5. Bxc4 {[%clk 0:03:00]}  c5 {[%clk 0:03:01]} 6. O-O {[%clk 0:02:55]}  a6 {[%clk 0:03:02]} 7. dxc5 {[%clk 0:02:54]}  Qxd1 {[%clk 0:03:02]} 8. Rxd1 {[%clk 0:02:54]}  Bxc5 {[%clk 0:03:03]} 9. Nfd2 {[%clk 0:02:49]}  Nc6 {[%clk 0:03:01]} 10. Nb3 {[%clk 0:02:48]}  Ba7 {[%clk 0:03:01]} 11. Be2 {[%clk 0:02:42]}  Bd7 {[%clk 0:03:01]} 12. Nc3 {[%clk 0:02:34]}  Rc8 {[%clk 0:03:01]} 13. Bd2 {[%clk 0:02:12]}  Nb4 {[%clk 0:02:55]} 14. Nb5 {[%clk 0:02:07]}  axb5 {[%clk 0:02:38]} 15. Bxb4 {[%clk 0:02:06]}  Nd5 {[%clk 0:02:39]} 16. Bd6 {[%clk 0:02:00]}  Rc2 {[%clk 0:02:39]} 17. Bd3 {[%clk 0:01:53]}  Rxb2 {[%clk 0:02:38]} 18. Be5 {[%clk 0:01:51]}  Rxb3 {[%clk 0:02:05]} 19. axb3 {[%clk 0:01:49]}  Bb6 {[%clk 0:02:04]} 20. Ra8+ {[%clk 0:01:46]}  Bd8 {[%clk 0:02:04]} 21. Bxg7 {[%clk 0:01:41]}  Rg8 {[%clk 0:02:02]} 22. Bd4 {[%clk 0:01:38]}  Bc6 {[%clk 0:01:59]} 23. Be4 {[%clk 0:01:32]}  f5 {[%clk 0:01:55]} 24. Bxd5 {[%clk 0:01:16]}  Bxd5 {[%clk 0:01:52]} 25. Bb6 {[%clk 0:01:11]}  Kd7 {[%clk 0:01:52]} 26. Rxd8+ {[%clk 0:01:09]}  Rxd8 {[%clk 0:01:53]} 27. Bxd8 {[%clk 0:01:10]}  Kxd8 {[%clk 0:01:54]} 28. b4 {[%clk 0:01:09]}  Kc7 {[%clk 0:01:52]} 29. f3 {[%clk 0:01:07]}  Kc6 {[%clk 0:01:51]} 30. Kf2 {[%clk 0:01:07]}  Bc4 {[%clk 0:01:52]} 31. g4 {[%clk 0:01:01]}  f4 {[%clk 0:01:52]} 32. exf4 {[%clk 0:01:00]} 1-0


[Site "https://www.chess.com"]

[Event "Early Titled Tuesday Blitz | February 8 2022"]
[White "Orozbaev, Eldiar"]
[Black "Makarian, Rudik"]
[WhiteFideId "13802240"]
[BlackFideId "44105681"]
[WhiteElo "2050"]
[BlackElo "2486"]
[Result "1-0"]
[Round "06"]
[TimeControl "180+1"]
[Date "2022.02.08"]
[WhiteClock "0:00:22"]
[BlackClock "0:00:05"]

1. e4 {[%clk 0:03:00]}  d6 {[%clk 0:02:59]} 2. d4 {[%clk 0:03:01]}  Nf6 {[%clk 0:03:00]} 3. Nc3 {[%clk 0:03:01]}  e5 {[%clk 0:03:00]} 4. Nf3 {[%clk 0:02:59]}  Nbd7 {[%clk 0:02:59]} 5. Bc4 {[%clk 0:02:58]}  Be7 {[%clk 0:02:58]} 6. O-O {[%clk 0:02:58]}  O-O {[%clk 0:02:58]} 7. a4 {[%clk 0:02:57]}  c6 {[%clk 0:02:58]} 8. Qe2 {[%clk 0:02:55]}  Qc7 {[%clk 0:02:50]} 9. Rd1 {[%clk 0:02:54]}  h6 {[%clk 0:02:50]} 10. Be3 {[%clk 0:02:53]}  Ng4 {[%clk 0:02:45]} 11. Ba2 {[%clk 0:02:31]}  Nxe3 {[%clk 0:02:44]} 12. Qxe3 {[%clk 0:02:32]}  a5 {[%clk 0:02:29]} 13. Ne2 {[%clk 0:02:25]}  Nf6 {[%clk 0:02:14]} 14. Ng3 {[%clk 0:02:21]}  Ng4 {[%clk 0:02:11]} 15. Qe2 {[%clk 0:02:21]}  g6 {[%clk 0:02:02]} 16. h3 {[%clk 0:02:14]}  Nf6 {[%clk 0:02:02]} 17. Rd2 {[%clk 0:02:10]}  Kg7 {[%clk 0:02:02]} 18. Rad1 {[%clk 0:02:11]}  Nh7 {[%clk 0:01:55]} 19. Qe3 {[%clk 0:02:04]}  Ng5 {[%clk 0:01:52]} 20. dxe5 {[%clk 0:01:56]}  dxe5 {[%clk 0:01:50]} 21. Qc3 {[%clk 0:01:46]}  Nxf3+ {[%clk 0:01:47]} 22. Qxf3 {[%clk 0:01:47]}  Bg5 {[%clk 0:01:44]} 23. Rd6 {[%clk 0:01:43]}  Be7 {[%clk 0:01:42]} 24. Nh5+ {[%clk 0:01:02]}  gxh5 {[%clk 0:01:32]} 25. Qg3+ {[%clk 0:01:02]}  Kh7 {[%clk 0:01:15]} 26. Bxf7 {[%clk 0:01:02]}  Bg5 {[%clk 0:00:35]} 27. Bg6+ {[%clk 0:00:51]}  Kh8 {[%clk 0:00:35]} 28. Qxe5+ {[%clk 0:00:36]}  Qg7 {[%clk 0:00:35]} 29. Qxg7+ {[%clk 0:00:25]}  Kxg7 {[%clk 0:00:36]} 30. Bxh5 {[%clk 0:00:26]}  Bf6 {[%clk 0:00:25]} 31. f4 {[%clk 0:00:24]}  Kh7 {[%clk 0:00:19]} 32. g3 {[%clk 0:00:21]}  Bxh3 {[%clk 0:00:17]} 33. e5 {[%clk 0:00:20]}  Be7 {[%clk 0:00:15]} 34. Rd7 {[%clk 0:00:19]}  Bxd7 {[%clk 0:00:13]} 35. Rxd7 {[%clk 0:00:20]}  Rae8 {[%clk 0:00:06]} 36. Rxb7 {[%clk 0:00:20]}  Kg8 {[%clk 0:00:06]} 37. Bxe8 {[%clk 0:00:19]}  Rxe8 {[%clk 0:00:06]} 38. Kf2 {[%clk 0:00:20]}  Kf7 {[%clk 0:00:06]} 39. Kf3 {[%clk 0:00:20]}  Ke6 {[%clk 0:00:06]} 40. Ke4 {[%clk 0:00:21]}  Rf8 {[%clk 0:00:05]} 41. f5+ {[%clk 0:00:21]}  Rxf5 {[%clk 0:00:05]} 42. Rxe7+ {[%clk 0:00:22]} 1-0


[Site "https://www.chess.com"]

[Event "Early Titled Tuesday Blitz | February 8 2022"]
[White "Osmonbekov, Talaibek"]
[Black "Varney, Zoe"]
[WhiteFideId "2017253"]
[BlackFideId "436135"]
[WhiteElo "2135"]
[BlackElo "1808"]
[Result "1-0"]
[Round "06"]
[TimeControl "180+1"]
[Date "2022.02.08"]
[WhiteClock "0:00:22"]
[BlackClock "0:00:03"]

1. d4 {[%clk 0:03:00]}  d5 {[%clk 0:02:58]} 2. Nc3 {[%clk 0:02:54]}  Nf6 {[%clk 0:02:57]} 3. Bf4 {[%clk 0:02:55]}  e6 {[%clk 0:02:47]} 4. e3 {[%clk 0:02:55]}  c6 {[%clk 0:02:39]} 5. Nf3 {[%clk 0:02:54]}  Be7 {[%clk 0:02:38]} 6. Bd3 {[%clk 0:02:54]}  O-O {[%clk 0:02:38]} 7. O-O {[%clk 0:02:54]}  Nbd7 {[%clk 0:02:39]} 8. e4 {[%clk 0:02:50]}  dxe4 {[%clk 0:02:37]} 9. Nxe4 {[%clk 0:02:51]}  Nxe4 {[%clk 0:02:37]} 10. Bxe4 {[%clk 0:02:52]}  Nf6 {[%clk 0:02:35]} 11. Bd3 {[%clk 0:02:52]}  Nd5 {[%clk 0:02:35]} 12. Bd2 {[%clk 0:02:51]}  c5 {[%clk 0:02:21]} 13. c3 {[%clk 0:02:41]}  b6 {[%clk 0:02:09]} 14. Qe2 {[%clk 0:02:38]}  Bb7 {[%clk 0:02:08]} 15. Rfe1 {[%clk 0:02:35]}  Qc7 {[%clk 0:01:56]} 16. Ne5 {[%clk 0:02:33]}  Bd6 {[%clk 0:01:32]} 17. Rad1 {[%clk 0:02:21]}  Rae8 {[%clk 0:01:28]} 18. Qh5 {[%clk 0:01:59]}  g6 {[%clk 0:01:10]} 19. Qh3 {[%clk 0:01:57]}  f6 {[%clk 0:01:02]} 20. Nf3 {[%clk 0:01:47]}  Nf4 {[%clk 0:00:38]} 21. Bxf4 {[%clk 0:01:46]}  Bxf4 {[%clk 0:00:39]} 22. Bb5 {[%clk 0:01:29]}  Bxf3 {[%clk 0:00:27]} 23. Bxe8 {[%clk 0:01:02]}  Bxd1 {[%clk 0:00:23]} 24. Qxe6+ {[%clk 0:01:02]}  Kg7 {[%clk 0:00:16]} 25. Rxd1 {[%clk 0:01:02]}  Bxh2+ {[%clk 0:00:15]} 26. Kf1 {[%clk 0:00:59]}  Qd6 {[%clk 0:00:12]} 27. Qxd6 {[%clk 0:00:51]}  Bxd6 {[%clk 0:00:13]} 28. dxc5 {[%clk 0:00:51]}  Bxc5 {[%clk 0:00:14]} 29. Rd7+ {[%clk 0:00:47]}  Kg8 {[%clk 0:00:14]} 30. Rd8 {[%clk 0:00:43]}  Be7 {[%clk 0:00:10]} 31. Ra8 {[%clk 0:00:40]}  Kg7 {[%clk 0:00:10]} 32. Ke2 {[%clk 0:00:36]}  Bc5 {[%clk 0:00:09]} 33. f3 {[%clk 0:00:35]}  Kh6 {[%clk 0:00:07]} 34. b4 {[%clk 0:00:27]}  Bd6 {[%clk 0:00:07]} 35. Kd3 {[%clk 0:00:28]}  Be5 {[%clk 0:00:04]} 36. c4 {[%clk 0:00:27]}  Bg3 {[%clk 0:00:04]} 37. c5 {[%clk 0:00:27]}  bxc5 {[%clk 0:00:03]} 38. bxc5 {[%clk 0:00:28]}  Kg5 {[%clk 0:00:04]} 39. Kc4 {[%clk 0:00:28]}  Be5 {[%clk 0:00:03]} 40. Kd5 {[%clk 0:00:27]}  Kf4 {[%clk 0:00:03]} 41. Ke6 {[%clk 0:00:25]}  Kg3 {[%clk 0:00:04]} 42. Ke7 {[%clk 0:00:25]}  Rh8 {[%clk 0:00:04]} 43. Rxa7 {[%clk 0:00:24]}  Kxg2 {[%clk 0:00:03]} 44. c6 {[%clk 0:00:23]}  Kxf3 {[%clk 0:00:03]} 45. c7 {[%clk 0:00:23]}  Bxc7 {[%clk 0:00:04]} 46. Rxc7 {[%clk 0:00:23]}  h5 {[%clk 0:00:03]} 47. a4 {[%clk 0:00:22]}  h4 {[%clk 0:00:03]} 48. a5 {[%clk 0:00:22]}  h3 {[%clk 0:00:04]} 49. a6 {[%clk 0:00:22]}  h2 {[%clk 0:00:04]} 50. Bc6+ {[%clk 0:00:22]}  Kf2 {[%clk 0:00:03]} 51. a7 {[%clk 0:00:22]}  g5 {[%clk 0:00:02]} 52. a8=Q {[%clk 0:00:21]}  Rxa8 {[%clk 0:00:02]} 53. Bxa8 {[%clk 0:00:22]}  g4 {[%clk 0:00:03]} 54. Kxf6 {[%clk 0:00:22]}  g3 {[%clk 0:00:03]} 55. Kg5 {[%clk 0:00:21]}  g2 {[%clk 0:00:04]} 56. Rc2+ {[%clk 0:00:21]}  Kf1 {[%clk 0:00:03]} 57. Bxg2+ {[%clk 0:00:22]} 1-0


[Site "https://www.chess.com"]

[Event "Early Titled Tuesday Blitz | February 8 2022"]
[White "Pakleza, Zbigniew"]
[Black "Hess, Robert"]
[WhiteFideId "1119290"]
[BlackFideId "2022036"]
[WhiteElo "2467"]
[BlackElo "2557"]
[Result "1/2-1/2"]
[Round "06"]
[TimeControl "180+1"]
[Date "2022.02.08"]
[WhiteClock "0:00:09"]
[BlackClock "0:00:06"]

1. d4 {[%clk 0:03:00]}  g6 {[%clk 0:03:00]} 2. Nf3 {[%clk 0:03:01]}  Bg7 {[%clk 0:03:00]} 3. Bf4 {[%clk 0:03:01]}  d6 {[%clk 0:02:57]} 4. e3 {[%clk 0:03:01]}  Nd7 {[%clk 0:02:58]} 5. h3 {[%clk 0:03:01]}  e6 {[%clk 0:02:58]} 6. Bh2 {[%clk 0:03:02]}  Ne7 {[%clk 0:02:59]} 7. Be2 {[%clk 0:03:03]}  h6 {[%clk 0:02:59]} 8. O-O {[%clk 0:03:04]}  b6 {[%clk 0:03:00]} 9. c4 {[%clk 0:03:03]}  Bb7 {[%clk 0:03:00]} 10. Nc3 {[%clk 0:03:04]}  O-O {[%clk 0:03:00]} 11. Rc1 {[%clk 0:03:04]}  f5 {[%clk 0:02:59]} 12. b4 {[%clk 0:03:04]}  g5 {[%clk 0:02:58]} 13. Qb3 {[%clk 0:03:01]}  Nf6 {[%clk 0:02:31]} 14. c5 {[%clk 0:02:57]}  Ned5 {[%clk 0:02:30]} 15. cxd6 {[%clk 0:02:57]}  cxd6 {[%clk 0:02:26]} 16. Nd2 {[%clk 0:02:44]}  Qe7 {[%clk 0:01:55]} 17. Nxd5 {[%clk 0:02:29]}  Bxd5 {[%clk 0:01:49]} 18. Bc4 {[%clk 0:02:29]}  b5 {[%clk 0:01:34]} 19. Bxd5 {[%clk 0:02:26]}  Nxd5 {[%clk 0:01:35]} 20. Rc6 {[%clk 0:02:22]}  f4 {[%clk 0:00:47]} 21. e4 {[%clk 0:02:09]}  Nb6 {[%clk 0:00:47]} 22. Qd3 {[%clk 0:01:55]}  Rfc8 {[%clk 0:00:27]} 23. Rfc1 {[%clk 0:01:52]}  a6 {[%clk 0:00:24]} 24. Kf1 {[%clk 0:01:31]}  Nc4 {[%clk 0:00:14]} 25. d5 {[%clk 0:01:05]}  Qd7 {[%clk 0:00:04]} 26. Nxc4 {[%clk 0:00:58]}  Rxc6 {[%clk 0:00:04]} 27. dxc6 {[%clk 0:00:59]}  Qxc6 {[%clk 0:00:04]} 28. Qxd6 {[%clk 0:01:00]}  Rc8 {[%clk 0:00:04]} 29. Qxc6 {[%clk 0:00:29]}  Rxc6 {[%clk 0:00:05]} 30. Ke2 {[%clk 0:00:30]}  bxc4 {[%clk 0:00:04]} 31. f3 {[%clk 0:00:29]}  Bb2 {[%clk 0:00:03]} 32. Rc2 {[%clk 0:00:27]}  Bd4 {[%clk 0:00:04]} 33. Rc1 {[%clk 0:00:20]}  e5 {[%clk 0:00:03]} 34. Bg1 {[%clk 0:00:20]}  Kf7 {[%clk 0:00:03]} 35. Bf2 {[%clk 0:00:21]}  Ke6 {[%clk 0:00:03]} 36. Be1 {[%clk 0:00:22]}  Kd6 {[%clk 0:00:02]} 37. a4 {[%clk 0:00:22]}  Kc7 {[%clk 0:00:03]} 38. b5 {[%clk 0:00:20]}  axb5 {[%clk 0:00:02]} 39. axb5 {[%clk 0:00:21]}  Rc5 {[%clk 0:00:03]} 40. Bb4 {[%clk 0:00:22]}  Rxb5 {[%clk 0:00:02]} 41. Rxc4+ {[%clk 0:00:23]}  Kd7 {[%clk 0:00:02]} 42. Kd3 {[%clk 0:00:22]}  Ke6 {[%clk 0:00:02]} 43. Rc6+ {[%clk 0:00:12]}  Kd7 {[%clk 0:00:02]} 44. Rc4 {[%clk 0:00:07]}  Rb8 {[%clk 0:00:02]} 45. Bd2 {[%clk 0:00:05]}  Rb3+ {[%clk 0:00:02]} 46. Ke2 {[%clk 0:00:05]}  Rb2 {[%clk 0:00:02]} 47. Kd3 {[%clk 0:00:06]}  Ra2 {[%clk 0:00:03]} 48. Rc2 {[%clk 0:00:06]}  Ra3+ {[%clk 0:00:03]} 49. Ke2 {[%clk 0:00:06]}  h5 {[%clk 0:00:03]} 50. Rc4 {[%clk 0:00:05]}  Ra2 {[%clk 0:00:03]} 51. Kd3 {[%clk 0:00:05]}  Ra1 {[%clk 0:00:04]} 52. Rc2 {[%clk 0:00:06]}  Rd1 {[%clk 0:00:04]} 53. Kc4 {[%clk 0:00:06]}  Rg1 {[%clk 0:00:04]} 54. Bb4 {[%clk 0:00:07]}  Ke6 {[%clk 0:00:03]} 55. Kb5 {[%clk 0:00:07]}  g4 {[%clk 0:00:03]} 56. fxg4 {[%clk 0:00:07]}  hxg4 {[%clk 0:00:04]} 57. hxg4 {[%clk 0:00:08]}  Kf6 {[%clk 0:00:05]} 58. Kc6 {[%clk 0:00:06]}  Kg5 {[%clk 0:00:05]} 59. Bd6 {[%clk 0:00:06]}  Kxg4 {[%clk 0:00:05]} 60. Kd5 {[%clk 0:00:07]}  Kg3 {[%clk 0:00:05]} 61. Bxe5 {[%clk 0:00:08]}  Be3 {[%clk 0:00:05]} 62. Ke6 {[%clk 0:00:06]}  Rxg2 {[%clk 0:00:04]} 63. Rxg2+ {[%clk 0:00:06]}  Kxg2 {[%clk 0:00:05]} 64. Bxf4 {[%clk 0:00:07]}  Bxf4 {[%clk 0:00:06]} 65. Kf5 {[%clk 0:00:08]}  Bg3 {[%clk 0:00:06]} 66. Kf6 {[%clk 0:00:08]}  Kf3 {[%clk 0:00:06]} 67. e5 {[%clk 0:00:09]}  Bxe5+ {[%clk 0:00:06]} 1/2-1/2


[Site "https://www.chess.com"]